bitfinex-derivatives/quotes_BNBF0:USTF0_20241230
["timestamp","ask_amount","ask_price","bid_price","bid_amount"]
[1735582676835,0.26098791,705.86,704.41,1.03906777]
[1735582677029,0.26098791,705.85,704.41,1.03906777]
[1735582677229,0.26098791,705.84,704.41,1.03906777]
[1735582677535,0.26098791,705.83,704.41,1.03906777]
[1735582677735,0.26098791,705.82,704.41,1.03906777]
[1735582678035,0.26098791,705.82,703.67,2.12143003]
[1735582678036,0.28336639,705.8,704.43,1.03906777]
[1735582678235,0.26098791,705.79,704.43,1.03906777]
[1735582678432,0.26100845,705.78,704.43,1.03906777]
[1735582678631,0.26100845,705.79,704.43,1.03906777]
[1735582678833,0.28337843,705.77,704.43,1.03906777]
[1735582679031,0.26100845,705.76,704.43,1.03906777]
[1735582679938,0.26100845,705.76,704.32,1.03906777]
[1735582680828,0.2609944,705.75,704.32,1.03906777]
[1735582681234,0.28337843,705.77,704.44,1.03906777]
[1735582681235,0.2609944,705.74,704.44,1.03906777]
[1735582681436,0.2609944,705.73,704.44,1.03906777]
[1735582681740,0.2609944,705.72,704.44,1.03906777]
[1735582682038,0.2609944,705.71,704.44,1.03906777]
[1735582682438,0.2609944,705.7,704.44,1.03906777]
[1735582682632,0.2609944,705.7,704.48,1.03906777]
[1735582682938,0.28337843,705.77,704.48,1.03906777]
[1735582683737,0.28337843,705.77,704.58,1.03906777]
[1735582684534,0.28337843,705.77,704.56,1.03906777]
[1735582685635,0.28337843,705.77,704.54,1.03906777]
[1735582688339,0.26092636,705.76,704.54,1.03906777]
[1735582688539,0.26092636,705.76,704.53,1.03906777]
[1735582689336,0.28337843,705.77,704.53,1.03906777]
[1735582689938,0.26091402,705.76,704.71,1.03906777]
[1735582690132,0.28337843,705.77,704.71,1.03906777]
[1735582691036,0.28337843,705.77,704.68,1.03906777]
[1735582692041,0.28337843,705.77,704.7,1.03906777]
[1735582693237,0.28337843,705.77,704.66,1.03906777]
[1735582695541,0.28337843,705.77,704.64,1.03906777]
[1735582697539,0.28337843,705.77,703.97,2.12143003]
[1735582697540,0.28337843,705.77,704.66,1.03906777]
[1735582697738,0.26091685,705.76,704.66,1.03906777]
[1735582697938,0.28339048,705.74,704.66,1.03906777]
[1735582698541,1.48088782,705.73,704.57,1.03906777]
[1735582699543,0.26092268,705.72,704.59,1.03906777]
[1735582700743,0.26092268,705.72,704.56,1.03906777]
[1735582701449,0.26092287,705.71,704.56,1.03906777]
[1735582701748,0.26092287,705.7,704.56,1.03906777]
[1735582702154,0.26092287,705.69,704.55,1.03906777]
[1735582702353,0.26092287,705.68,704.55,1.03906777]
[1735582702550,0.26092287,705.72,704.55,1.03906777]
[1735582702750,0.26092287,705.67,704.55,1.03906777]
[1735582702953,0.26092287,705.66,704.55,1.03906777]
[1735582703155,0.26092287,705.72,704.55,1.03906777]
[1735582703452,0.26092287,705.71,704.55,1.03906777]
[1735582703653,0.26092287,705.7,704.55,1.03906777]
[1735582703952,0.26092287,705.72,704.55,1.03906777]
[1735582704146,0.26097774,705.69,704.55,1.03906777]
[1735582704352,0.26097774,705.71,704.42,1.03906777]
[1735582704551,0.26097774,705.7,704.42,1.03906777]
[1735582704750,0.26097774,705.72,704.42,1.03906777]
[1735582704947,0.26097774,705.71,704.42,1.03906777]
[1735582705150,0.26097774,705.72,704.4,1.03906777]
[1735582705452,0.26097774,705.71,704.4,1.03906777]
[1735582705855,0.26097774,705.7,704.4,1.03906777]
[1735582706148,0.26097774,705.72,704.4,1.03906777]
[1735582706355,0.26097774,705.71,704.4,1.03906777]
[1735582706553,1.48088782,705.73,704.4,1.03906777]
[1735582706754,0.26099981,705.7,704.4,1.03906777]
[1735582706954,0.26099981,705.72,704.4,1.03906777]
[1735582707155,0.26099981,705.71,704.38,1.03906777]
[1735582707350,0.26099981,705.7,704.38,1.03906777]
[1735582707547,0.26099981,705.72,704.38,1.03906777]
[1735582707753,0.26099981,705.71,704.38,1.03906777]
[1735582707954,0.26099981,705.72,704.38,1.03906777]
[1735582708149,0.26099981,705.72,703.84,1.24688132]
[1735582708150,0.26099981,705.7,704.35,1.03906777]
[1735582708355,0.26099981,705.71,704.35,1.03906777]
[1735582708650,1.48088782,705.73,704.35,1.03906777]
[1735582708651,0.26099981,705.7,704.35,1.03906777]
[1735582708855,0.26099981,705.69,704.35,1.03906777]
[1735582709055,1.48088782,705.73,704.35,1.03906777]
[1735582709249,0.2609913,705.72,704.35,1.03906777]
[1735582709454,0.2609913,705.72,704.34,1.03906777]
[1735582709759,0.26098688,705.71,704.34,1.03906777]
[1735582710150,1.48088782,705.73,704.34,1.03906777]
[1735582710456,0.26098522,705.71,704.36,1.03906777]
[1735582710651,0.26098522,705.7,704.36,1.03906777]
[1735582710956,0.26098522,705.72,704.36,1.03906777]
[1735582711458,0.26098522,705.69,704.36,1.03906777]
[1735582711659,0.26098522,705.71,704.36,1.03906777]
[1735582712050,0.2609899,705.7,704.36,1.03906777]
[1735582712252,0.2609899,705.7,704.39,1.03906777]
[1735582712453,0.2609899,705.69,704.39,1.03906777]
[1735582712854,0.2609899,705.72,704.39,1.03906777]
[1735582713051,0.2609899,705.71,704.39,1.03906777]
[1735582713257,0.2609899,705.7,704.39,1.03906777]
[1735582713452,0.2609899,705.69,704.39,1.03906777]
[1735582713852,0.2609899,705.72,704.39,1.03906777]
[1735582714052,1.48088782,705.73,704.12,1.03906777]
[1735582714053,0.2609899,705.68,704.12,1.03906777]
[1735582714756,0.2609899,705.67,704.12,1.03906777]
[1735582714955,0.2609899,705.72,704.12,1.03906777]
[1735582715350,0.2609899,705.72,703.77,1.03906777]
[1735582715351,0.2609899,705.66,704.05,1.03906777]
[1735582715556,0.2609899,705.71,704.05,1.03906777]
[1735582715755,0.2609899,705.65,704.05,1.03906777]
[1735582715953,0.28343466,705.63,704.05,1.03906777]
[1735582716158,0.2609899,705.62,704.05,1.03906777]
[1735582716458,0.2609899,705.62,703.36,2.12143003]
[1735582716459,0.28344671,705.6,704.18,1.03906777]
[1735582716755,0.2609899,705.59,704.18,1.03906777]
[1735582717058,0.2610272,705.58,704.18,1.03906777]
[1735582717456,0.2610272,705.57,704.32,1.03906777]
[1735582717758,0.2610272,705.56,704.32,1.03906777]
[1735582717958,0.2610272,705.59,704.32,1.03906777]
[1735582718154,0.2610272,705.58,704.32,1.03906777]
[1735582718359,0.28344671,705.6,704.32,1.03906777]
[1735582718360,0.2610272,705.57,704.32,1.03906777]
[1735582718757,0.28344671,705.6,704.34,1.03906777]
[1735582719153,0.26098031,705.59,704.34,1.03906777]
[1735582719761,0.26098274,705.58,704.33,1.03906777]
[1735582720062,0.26098416,705.59,704.33,1.03906777]
[1735582720363,0.28344671,705.6,704.33,1.03906777]
[1735582720556,0.26096255,705.59,704.33,1.03906777]
[1735582720757,0.26096255,705.59,704.35,1.03906777]
[1735582721262,0.28344671,705.6,704.35,1.03906777]
[1735582722161,0.28344671,705.6,704.43,1.03906777]
[1735582723660,0.28344671,705.6,704.48,1.03906777]
[1735582725866,0.28344671,705.6,704.5,1.03906777]
[1735582726262,1.48100337,705.59,704.5,1.03906777]
[1735582726459,0.28345474,705.58,704.5,1.03906777]
[1735582726664,0.28345474,705.58,704.49,1.03906777]
[1735582727566,0.28345474,705.58,704.13,1.03906777]
[1735582727567,0.28345474,705.58,704.46,1.03906777]
[1735582728869,0.28345474,705.58,704.47,1.03906777]
[1735582729863,0.28345474,705.58,704.51,1.03906777]
[1735582731169,0.28345474,705.58,704.55,1.03906777]
[1735582733269,0.28345474,705.58,704.51,1.03906777]
[1735582734764,0.28345474,705.58,704.4,1.03906777]
[1735582735665,0.28345474,705.58,704.45,1.03906777]
[1735582736770,0.26096054,705.57,704.45,1.03906777]
[1735582737272,0.28346278,705.56,704.45,1.03906777]
[1735582737665,0.26096338,705.55,704.45,1.03906777]
[1735582737869,0.26098038,705.54,704.52,1.03906777]
[1735582738068,0.26098038,705.55,704.52,1.03906777]
[1735582738266,0.26098038,705.53,704.52,1.03906777]
[1735582738767,0.26098038,705.52,704.38,1.03906777]
[1735582739169,0.26098038,705.51,704.38,1.03906777]
[1735582739369,1.48143418,705.51,704.38,1.03906777]
[1735582739665,0.26098038,705.5,704.38,1.03906777]
[1735582739870,0.26098038,705.5,704.37,1.03906777]
[1735582740172,0.26100546,705.49,704.37,1.03906777]
[1735582740371,0.28349894,705.47,704.37,1.03906777]
[1735582740769,0.26100871,705.46,704.37,1.03906777]
[1735582741073,0.28349894,705.47,704.17,1.03906777]
[1735582741074,0.28349894,705.47,704.38,1.03906777]
[1735582742066,0.2610663,705.46,704.07,1.03906777]
[1735582743472,0.2610663,705.46,704.05,1.03906777]
[1735582744373,0.28349894,705.47,704.05,1.03906777]
[1735582745073,0.28349894,705.47,704.09,1.03906777]
[1735582745672,0.2611018,705.46,704.09,1.03906777]
[1735582746075,0.2611018,705.46,704.04,1.03906777]
[1735582747172,0.2611018,705.46,703.96,1.03906777]
[1735582747777,0.28349894,705.47,703.96,1.03906777]
[1735582748075,0.26111353,705.46,703.96,1.03906777]
[1735582748479,0.26111353,705.46,703.73,1.03906777]
[1735582749275,0.26111353,705.46,702.88,2.12143003]
[1735582749276,0.28349894,705.47,703.83,1.03906777]
[1735582750478,0.28349894,705.47,703.92,1.03906777]
[1735582751277,0.26101568,705.46,703.92,1.03906777]
[1735582751675,0.26101568,705.46,703.99,1.03906777]
[1735582752674,0.26101568,705.46,704.17,1.03906777]
[1735582752878,0.26102829,705.45,704.17,1.03906777]
[1735582753375,0.28349894,705.47,704.17,1.03906777]
[1735582753779,0.2610505,705.46,704.13,1.03906777]
[1735582754975,0.2610505,705.46,704.04,1.03906777]
[1735582755675,0.26108276,705.45,704.04,1.03906777]
[1735582755880,0.26108276,705.45,703.47,2.12143003]
[1735582755881,0.26108276,705.46,703.97,1.03906777]
[1735582756181,0.26108276,705.45,703.97,1.03906777]
[1735582756382,0.26108276,705.46,703.97,1.03906777]
[1735582756581,0.26108276,705.45,703.97,1.03906777]
[1735582756877,0.26108276,705.44,703.98,1.03906777]
[1735582757185,0.26108276,705.43,703.98,1.03906777]
[1735582757481,0.26108276,705.42,703.98,1.03906777]
[1735582757682,1.48189154,705.43,703.98,1.03906777]
[1735582757882,0.26108276,705.42,703.95,1.03906777]
[1735582759078,0.26108276,705.42,703.94,1.03906777]
[1735582759986,0.28352707,705.4,703.87,1.03906777]
[1735582760283,0.26108276,705.39,703.87,1.03906777]
[1735582760480,0.28352707,705.4,703.87,1.03906777]
[1735582760679,0.26109914,705.38,703.87,1.03906777]
[1735582760883,0.28352707,705.4,703.88,1.03906777]
[1735582760884,0.26109914,705.37,703.88,1.03906777]
[1735582761084,0.26109914,705.39,703.88,1.03906777]
[1735582761280,0.26109914,705.38,703.88,1.03906777]
[1735582761480,0.26109914,705.37,703.88,1.03906777]
[1735582761678,0.26109914,705.39,703.88,1.03906777]
[1735582761979,0.28352707,705.4,703.88,1.03906777]
[1735582762386,0.28352707,705.4,703.66,1.03906777]
[1735582762387,0.28352707,705.4,703.92,1.03906777]
[1735582763480,0.28352707,705.4,703.38,0.28434132]
[1735582763481,0.28352707,705.4,703.79,1.03906777]
[1735582764381,0.28352707,705.4,703.38,0.28434132]
[1735582764382,0.28352707,705.4,703.81,1.03906777]
[1735582765187,0.26105711,705.39,703.81,1.03906777]
[1735582765488,0.26105711,705.39,703.84,1.03906777]
[1735582766483,0.26105711,705.39,704.2,1.03906777]
[1735582767191,0.28352707,705.4,704.2,1.03906777]
[1735582767590,0.28352707,705.4,704.24,1.03906777]
[1735582768890,0.28352707,705.4,704.42,1.03906777]
[1735582769196,0.28352707,705.4,703.84,2.12143003]
[1735582769493,0.28352707,705.4,701.95,2.89613753]
[1735582769792,0.28352707,705.4,701.96,5.28922795]
[1735582769994,0.28352707,705.4,701.97,5.28922795]
[1735582770188,0.28352707,705.4,701.98,1.51820609]
[1735582770395,0.28352707,705.4,704.44,1.04672918]
[1735582771492,0.28352707,705.4,704.53,1.04672918]
[1735582772593,0.28352707,705.4,704.51,1.04672918]
[1735582773795,0.28352707,705.4,704.52,1.04672918]
[1735582774998,0.28352707,705.4,704.51,1.04672918]
[1735582776095,0.28352707,705.4,704.2,1.04672918]
[1735582776096,0.28352707,705.4,704.41,1.04672918]
[1735582777193,0.28352707,705.4,704.45,1.04672918]
[1735582778299,0.28352707,705.4,704.44,1.04672918]
[1735582779194,0.28352707,705.4,704.43,1.04672918]
[1735582780301,0.28352707,705.4,704.47,1.04672918]
[1735582781396,0.28352707,705.4,703.94,2.13707208]
[1735582781397,0.28352707,705.4,704.44,1.04672918]
[1735582782005,0.28352707,705.4,704.38,1.04672918]
[1735582783106,0.28352707,705.4,704.3,1.04672918]
[1735582784002,1.48146046,705.39,704.3,1.04672918]
[1735582784202,1.48146046,705.39,704.27,1.04672918]
[1735582785506,1.48146046,705.39,704.3,1.04672918]
[1735582786506,1.48146046,705.39,704.37,1.04672918]
[1735582787309,1.48146046,705.39,704.35,1.04672918]
[1735582789507,1.48146046,705.39,704.28,1.04672918]
[1735582790512,1.48146046,705.39,704.26,1.04672918]
[1735582791413,0.28352707,705.4,704.26,1.04672918]
[1735582791714,0.28352707,705.4,704.28,1.04672918]
[1735582792013,1.48063579,705.39,704.28,1.04672918]
[1735582792615,1.48063579,705.39,704.32,1.04672918]
[1735582793514,1.48063579,705.39,704.33,1.04672918]
[1735582794311,1.48063579,705.39,704.39,1.04672918]
[1735582795618,1.48063579,705.39,704.43,1.04672918]
[1735582796917,1.48063579,705.39,704.46,1.04672918]
[1735582797618,1.48063579,705.39,704.54,1.04672918]
[1735582798618,1.48063579,705.39,704.55,1.04672918]
[1735582799718,1.48063579,705.39,704.56,1.04672918]
[1735582800922,1.48063579,705.39,704.49,1.04672918]
[1735582801721,0.28352707,705.4,704.49,1.04672918]
[1735582802124,1.48079855,705.39,704.49,1.04672918]
[1735582802420,1.48079855,705.39,704.63,1.04672918]
[1735582803326,1.48079855,705.39,704.73,1.04672918]
[1735582804424,1.48079855,705.39,704.74,1.04672918]
[1735582805620,1.48079855,705.39,704.75,1.04672918]
[1735582807620,1.48079855,705.39,704.72,1.04672918]
[1735582808622,1.48079855,705.39,704.8,1.04672918]
[1735582809625,1.48079855,705.39,704.81,1.04672918]
[1735582810424,1.48079855,705.39,704.79,1.04672918]
[1735582811725,1.48079855,705.39,704.88,1.04672918]
[1735582812826,1.48079855,705.39,704.91,1.04672918]
[1735582813824,1.48079855,705.39,704.88,1.04672918]
[1735582814829,1.48079855,705.39,704.89,1.04672918]
[1735582815629,0.28352707,705.4,704.89,1.04672918]
[1735582816026,1.4807618,705.51,704.94,1.04672918]
[1735582816933,1.4807618,705.51,705.01,1.04672918]
[1735582817528,1.05847411,706.47,705.01,1.04672918]
[1735582817727,1.48052031,705.59,705.01,1.04672918]
[1735582817932,1.05847411,706.47,705.01,1.04672918]
[1735582818229,1.48045733,705.61,704.93,1.04672918]
[1735582818532,0.28310566,706.45,704.93,1.04672918]
[1735582818733,0.2607719,706.44,704.93,1.04672918]
[1735582819132,0.2607719,706.44,704.97,1.04672918]
[1735582819726,1.74073039,706.43,704.97,1.04672918]
[1735582819932,1.74073039,706.43,705.03,1.04672918]
[1735582820130,0.26074527,706.42,705.03,1.04672918]
[1735582821328,0.26074527,706.42,704.8,1.04672918]
[1735582821329,0.26074527,706.42,705.09,1.04672918]
[1735582822136,1.47998512,706.43,705.09,1.04672918]
[1735582822330,0.26071166,706.41,705.04,1.04672918]
[1735582822534,0.26071166,706.42,705.04,1.04672918]
[1735582822735,0.26071166,706.4,705.04,1.04672918]
[1735582822934,1.47998512,706.43,705.04,1.04672918]
[1735582823129,0.2607047,706.39,705.04,1.04672918]
[1735582823331,0.2607047,706.39,704.83,1.04672918]
[1735582823332,0.2607047,706.39,705.03,1.04672918]
[1735582823530,0.2607047,706.42,705.03,1.04672918]
[1735582823933,0.2607047,706.38,705.03,1.04672918]
[1735582824136,0.2607047,706.37,705.03,1.04672918]
[1735582824335,0.2607047,706.42,704.91,1.04672918]
[1735582824535,0.2607047,706.36,704.91,1.04672918]
[1735582824736,1.47998512,706.43,704.91,1.04672918]
[1735582826440,1.47998512,706.43,704.72,1.04672918]
[1735582827039,0.26074562,706.42,704.72,1.04672918]
[1735582827443,1.47998512,706.43,704.72,1.04672918]
[1735582827644,0.26075685,706.41,704.79,1.04672918]
[1735582827844,0.26075685,706.4,704.79,1.04672918]
[1735582828246,0.26075685,706.42,704.79,1.04672918]
[1735582828446,0.26075685,706.39,704.79,1.04672918]
[1735582828646,0.26075685,706.38,704.79,1.04672918]
[1735582828946,0.28314174,706.36,704.79,1.04672918]
[1735582829350,0.26075685,706.35,704.79,1.04672918]
[1735582829848,1.48013724,706.34,704.79,1.04672918]
[1735582830148,0.28315777,706.32,704.79,1.04672918]
[1735582830349,0.26075685,706.31,704.79,1.04672918]
[1735582830551,0.2831698,706.29,704.79,1.04672918]
[1735582830846,0.26075685,706.28,704.74,1.04672918]
[1735582831045,0.28318183,706.26,704.74,1.04672918]
[1735582831249,0.26075685,706.25,704.74,1.04672918]
[1735582831950,0.26075685,706.25,704.17,0.7468465]
[1735582831951,0.26075685,706.25,704.63,1.04672918]
[1735582832858,0.26075685,706.25,704.68,1.04672918]
[1735582834049,0.26075685,706.25,704.64,1.04672918]
[1735582834253,0.26075685,706.24,704.64,1.04672918]
[1735582834457,0.26075685,706.23,704.64,1.04672918]
[1735582834657,0.26075685,706.22,704.64,1.04672918]
[1735582834853,0.26075685,706.21,704.64,1.04672918]
[1735582835150,0.26075685,706.21,704.05,2.13707208]
[1735582835151,0.26088301,706.2,704.48,1.04672918]
[1735582835855,0.26088301,706.19,704.48,1.04672918]
[1735582836055,0.26088301,706.25,704.48,1.04672918]
[1735582836256,0.26088301,706.25,704.46,1.04672918]
[1735582836452,0.26088301,706.24,704.46,1.04672918]
[1735582836654,0.26088301,706.23,704.46,1.04672918]
[1735582836852,0.26088301,706.23,704.49,1.04672918]
[1735582837047,0.26088301,706.25,704.49,1.04672918]
[1735582837958,0.26084691,706.24,704.49,1.04672918]
[1735582838158,0.26084691,706.23,704.58,1.04672918]
[1735582838560,0.26084691,706.25,704.58,1.04672918]
[1735582838757,0.26084691,706.22,704.58,1.04672918]
[1735582838954,0.26084691,706.24,704.57,1.04672918]
[1735582839152,0.26084691,706.21,704.57,1.04672918]
[1735582839359,0.26084691,706.2,704.57,1.04672918]
[1735582839559,0.26084691,706.25,704.57,1.04672918]
[1735582839755,0.28319386,706.23,704.57,1.04672918]
[1735582839954,0.26084691,706.22,704.57,1.04672918]
[1735582840162,1.74140396,706.22,704.57,1.04672918]
[1735582840360,0.26084691,706.21,704.57,1.04672918]
[1735582841356,0.2832099,706.19,704.57,1.04672918]
[1735582841554,0.26084691,706.18,704.67,1.04672918]
[1735582842663,0.26084691,706.18,704.74,1.04672918]
[1735582842859,0.28322193,706.16,704.74,1.04672918]
[1735582843060,0.26080898,706.15,704.74,1.04672918]
[1735582843460,0.28323396,706.13,704.74,1.04672918]
[1735582843661,0.26080898,706.12,704.77,1.04672918]
[1735582844661,0.26080898,706.12,704.25,1.25607502]
[1735582844662,0.26080898,706.12,704.84,1.04672918]
[1735582845261,0.26080898,706.12,704.82,1.04672918]
[1735582845757,0.26079418,706.11,704.82,1.04672918]
[1735582845956,0.28323396,706.13,704.82,1.04672918]
[1735582846356,0.28323396,706.13,704.73,1.04672918]
[1735582848763,0.28323396,706.13,704.75,1.04672918]
[1735582849558,0.28323396,706.13,704.78,1.04672918]
[1735582850563,1.74073613,706.12,704.77,1.04672918]
[1735582850764,0.26080346,706.11,704.77,1.04672918]
[1735582851460,0.26080589,706.1,704.77,1.04672918]
[1735582851665,0.26080589,706.11,704.7,1.04672918]
[1735582852165,0.26080589,706.09,704.7,1.04672918]
[1735582852369,0.26080589,706.1,704.7,1.04672918]
[1735582852567,0.26080589,706.09,704.7,1.04672918]
[1735582852767,0.26080589,706.08,704.98,1.04672918]
[1735582852962,0.26080589,706.07,704.98,1.04672918]
[1735582853163,0.26080589,706.06,704.98,1.04672918]
[1735582853366,0.26080589,706.05,704.98,1.04672918]
[1735582853561,0.26080589,706.11,704.98,1.04672918]
[1735582853866,0.26080589,706.04,704.98,1.04672918]
[1735582854169,0.28327408,706.03,704.94,1.04672918]
[1735582854564,0.26080042,706.02,704.94,1.04672918]
[1735582854867,0.28327408,706.03,704.94,1.04672918]
[1735582855461,0.28327408,706.03,704.87,1.04672918]
[1735582856366,0.28327408,706.03,704.89,1.04672918]
[1735582857167,0.28327408,706.03,704.91,1.04672918]
[1735582858071,0.28327408,706.03,704.87,1.04672918]
[1735582859073,0.2608291,706.02,704.87,1.04672918]
[1735582859269,0.28328611,706.0,704.87,1.04672918]
[1735582859475,0.2608291,705.99,704.86,1.04672918]
[1735582859773,0.28329815,705.97,704.86,1.04672918]
[1735582859966,0.2608291,705.96,704.86,1.04672918]
[1735582860170,0.26085672,705.96,704.86,1.04672918]
[1735582860667,0.26085672,705.96,704.17,2.13707208]
[1735582860668,0.26085672,705.96,704.81,1.04672918]
[1735582860867,0.28331019,705.94,704.81,1.04672918]
[1735582861271,0.26085136,705.93,704.81,1.04672918]
[1735582861771,0.26086092,705.92,704.81,1.04672918]
[1735582861975,0.28331019,705.94,704.83,1.04672918]
[1735582862172,0.26084288,705.93,704.83,1.04672918]
[1735582862774,0.28331019,705.94,704.83,1.04672918]
[1735582863075,0.28331019,705.94,704.86,1.04672918]
[1735582863273,0.26085416,705.93,704.86,1.04672918]
[1735582863673,0.28332223,705.91,704.86,1.04672918]
[1735582863874,0.26085416,705.9,704.86,1.04672918]
[1735582864678,0.28333427,705.88,704.83,1.04672918]
[1735582864877,0.26085416,705.87,704.83,1.04672918]
[1735582865178,0.28334632,705.85,704.83,1.04672918]
[1735582865379,0.26085416,705.84,704.83,1.04672918]
[1735582865578,0.28335836,705.82,704.83,1.04672918]
[1735582865779,0.28335836,705.82,704.59,1.04672918]
[1735582865780,0.26085416,705.81,704.81,1.04672918]
[1735582866275,0.2833704,705.79,704.81,1.04672918]
[1735582866679,0.26085416,705.78,704.75,1.04672918]
[1735582866879,0.28338245,705.76,704.75,1.04672918]
[1735582867279,0.26085416,705.75,704.75,1.04672918]
[1735582867478,0.28339449,705.73,704.71,1.04672918]
[1735582867675,0.26091175,705.72,704.71,1.04672918]
[1735582868783,0.28339449,705.73,704.09,2.13707208]
[1735582868784,0.28339449,705.73,704.63,1.04672918]
[1735582869181,0.2609322,705.71,704.63,1.04672918]
[1735582869380,0.28339449,705.73,704.63,1.04672918]
[1735582869381,0.2609322,705.7,704.63,1.04672918]
[1735582869575,0.2609322,705.72,704.63,1.04672918]
[1735582869779,0.26090843,705.71,704.58,1.04672918]
[1735582869984,0.26090843,705.72,704.58,1.04672918]
[1735582870283,0.26090843,705.71,704.58,1.04672918]
[1735582870482,0.28339449,705.73,704.58,1.04672918]
[1735582870483,0.26090843,705.72,704.58,1.04672918]
[1735582870683,0.26090843,705.7,704.58,1.04672918]
[1735582870878,0.28339449,705.73,704.58,1.04672918]
[1735582870879,0.26090843,705.69,704.58,1.04672918]
[1735582871084,1.4809666,705.71,704.71,1.04672918]
[1735582871383,0.26090843,705.7,704.71,1.04672918]
[1735582871784,0.28341056,705.69,704.69,1.04672918]
[1735582871987,0.26090843,705.68,704.69,1.04672918]
[1735582873187,0.26090843,705.68,704.6,1.04672918]
[1735582873486,0.26097391,705.67,704.6,1.04672918]
[1735582873686,0.26097391,705.68,704.6,1.04672918]
[1735582873885,0.26097391,705.66,704.6,1.04672918]
[1735582874088,0.26097391,705.65,704.6,1.04672918]
[1735582874282,0.26097391,705.68,704.45,1.04672918]
[1735582874484,0.26097391,705.67,704.45,1.04672918]
[1735582874682,0.26097391,705.68,704.45,1.04672918]
[1735582874885,0.26097391,705.67,704.45,1.04672918]
[1735582875088,0.26097391,705.66,704.42,1.04672918]
[1735582875284,0.26097391,705.68,704.42,1.04672918]
[1735582875588,0.28342261,705.66,704.42,1.04672918]
[1735582876089,0.26095096,705.65,704.42,1.04672918]
[1735582876381,0.28342261,705.66,704.42,1.04672918]
[1735582877183,0.28342261,705.66,704.51,1.04672918]
[1735582878185,0.28342261,705.66,704.63,1.04672918]
[1735582879089,0.28342261,705.66,704.6,1.04672918]
[1735582880384,0.28342261,705.66,704.52,1.04672918]
[1735582881885,0.28342261,705.66,704.59,1.04672918]
[1735582883991,0.28342261,705.66,704.46,1.04672918]
[1735582884892,0.28342261,705.66,704.55,1.04672918]
[1735582886086,0.28342261,705.66,704.58,1.04672918]
[1735582886895,0.28342261,705.66,704.57,1.04672918]
[1735582887792,0.28342261,705.66,704.55,1.04672918]
[1735582888695,0.28342261,705.66,703.91,2.13707208]
[1735582888696,0.28342261,705.66,704.51,1.04672918]
[1735582890798,0.28342261,705.66,704.56,1.04672918]
[1735582891998,0.28342261,705.66,704.59,1.04672918]
[1735582893300,0.28342261,705.66,704.7,1.04672918]
[1735582894596,0.28342261,705.66,704.78,1.04672918]
[1735582895700,0.28342261,705.66,704.8,1.04672918]
[1735582896904,0.28342261,705.66,704.84,1.04672918]
[1735582897801,0.28342261,705.66,704.83,1.04672918]
[1735582899297,0.28342261,705.66,704.87,1.04672918]
[1735582900301,0.28342261,705.66,704.82,1.04672918]
[1735582901895,0.28342261,705.66,704.85,1.04672918]
[1735582904905,0.28342261,705.66,704.82,1.04672918]
[1735582907113,0.28342261,705.66,704.77,1.04672918]
[1735582907707,0.26094281,705.65,704.77,1.04672918]
[1735582907911,0.28342261,705.66,704.77,1.04672918]
[1735582908210,0.28342261,705.66,704.66,1.04672918]
[1735582909008,0.28342261,705.66,704.69,1.04672918]
[1735582910007,0.28342261,705.66,704.77,1.04672918]
[1735582911010,0.28342261,705.66,704.79,1.04672918]
[1735582912011,0.28342261,705.66,704.84,1.04672918]
[1735582912812,0.26091426,705.65,704.84,1.04672918]
[1735582913012,0.28342261,705.66,704.83,1.04672918]
[1735582913911,0.28342261,705.66,704.76,1.04672918]
[1735582914909,0.26092629,705.65,704.75,1.04672918]
[1735582915218,0.28342261,705.66,704.75,1.04672918]
[1735582915817,0.28342261,705.66,704.71,1.04672918]
[1735582916911,0.28342261,705.66,704.74,1.04672918]
[1735582918018,0.28342261,705.66,704.73,1.04672918]
[1735582919015,0.28342261,705.66,704.74,1.04672918]
[1735582919913,0.28342261,705.66,704.73,1.04672918]
[1735582921613,0.28342261,705.66,704.72,1.04672918]
[1735582922619,0.28342261,705.66,704.04,2.13707208]
[1735582922620,0.28342261,705.66,704.66,1.04672918]
[1735582923423,0.28342261,705.66,703.91,2.13707208]
[1735582923424,0.28342261,705.66,704.65,1.04672918]
[1735582924623,0.28342261,705.66,704.7,1.04672918]
[1735582925825,0.28342261,705.66,704.72,1.04672918]
[1735582927023,0.28342261,705.66,704.8,1.04672918]
[1735582928318,0.28342261,705.66,704.83,1.04672918]
[1735582929221,0.28342261,705.66,704.95,1.04672918]
[1735582930427,0.28342261,705.66,704.92,1.04672918]
[1735582931225,0.28342261,705.66,704.93,1.04672918]
[1735582931425,0.28342261,705.66,705.13,1.04672918]
[1735582932126,0.28342261,705.66,705.1,1.04672918]
[1735582933526,0.28342261,705.66,705.06,1.04672918]
[1735582934827,0.28342261,705.66,704.91,1.04672918]
[1735582935627,0.28342261,705.66,704.8,1.04672918]
[1735582936423,0.28342261,705.66,704.78,1.04672918]
[1735582937532,0.28342261,705.66,704.8,1.04672918]
[1735582937930,0.28340654,705.7,704.8,1.04672918]
[1735582938432,0.28340654,705.7,704.63,1.04672918]
[1735582939423,0.28340654,705.7,704.69,1.04672918]
[1735582940125,0.28340654,705.7,704.53,1.04672918]
[1735582942339,0.28340654,705.7,704.62,1.04672918]
[1735582943337,0.28340654,705.7,704.63,1.04672918]
[1735582944234,0.28340654,705.7,704.62,1.04672918]